bitfinex/quotes_BTCUSD_20241123
["timestamp","ask_amount","ask_price","bid_price","bid_amount"]
[1732380546891,0.00128206,97515.0,97510.0,0.0008595]
[1732380547097,0.10201427,97514.0,97510.0,0.0008595]
[1732380547314,0.00128206,97513.0,97510.0,0.0008595]
[1732380547531,0.10201427,97512.0,97510.0,0.0008595]
[1732380547741,0.10201427,97512.0,97490.0,0.09657339]
[1732380547742,0.00128216,97511.0,97490.0,0.09657339]
[1732380548013,0.10201427,97510.0,97490.0,0.09657339]
[1732380548222,0.00128216,97509.0,97490.0,0.09657339]
[1732380548433,0.10201427,97508.0,97490.0,0.09657339]
[1732380548648,0.12908216,97507.0,97490.0,0.09657339]
[1732380548859,0.10201427,97506.0,97490.0,0.09657339]
[1732380549070,0.00128216,97505.0,97490.0,0.09657339]
[1732380549317,0.35,97523.0,97490.0,0.09657339]
[1732380549318,0.0785,97517.0,97490.0,0.09657339]
[1732380549571,0.10329631,97516.0,97500.0,0.09658466]
[1732380549793,0.10201427,97516.0,97507.0,0.09658466]
[1732380550028,0.00128191,97525.0,97500.0,0.19316932]
[1732380550246,0.10201427,97524.0,97510.0,0.09744406]
[1732380550922,0.0493,97532.0,97510.0,0.09744406]
[1732380550923,0.00128181,97531.0,97510.0,0.09744406]
[1732380551164,0.2,97543.0,97522.0,0.09658466]
[1732380551165,0.0017188,97540.0,97522.0,0.09658466]
[1732380551382,0.10201427,97539.0,97530.0,0.09658466]
[1732380551607,0.07201427,97539.0,97530.0,0.09658466]
[1732380551855,0.0017188,97540.0,97530.0,0.09658466]
[1732380552297,0.0017188,97540.0,97539.0,0.09121226]
[1732380552521,0.0017188,97540.0,97528.0,0.22803065]
[1732380552522,0.0017188,97540.0,97531.0,0.22836106]
[1732380552731,0.0017188,97540.0,97522.0,0.04230694]
[1732380552732,0.0017188,97540.0,97533.0,0.09154267]
[1732380552961,0.0017188,97540.0,97522.0,0.04230694]
[1732380552962,0.23109589,97539.0,97522.0,0.04230694]
[1732380553213,0.30201427,97534.0,97522.0,0.04230694]
[1732380553544,0.30201427,97534.0,97510.0,0.0008594]
[1732380553545,0.2,97530.0,97510.0,0.0008594]
[1732380553745,0.10201427,97527.0,97510.0,0.0008594]
[1732380553903,0.00128204,97526.0,97510.0,0.0008594]
[1732380554100,0.10201427,97525.0,97510.0,0.0008594]
[1732380554303,0.00128206,97524.0,97510.0,0.09744406]
[1732380554713,0.00128191,97531.0,97510.0,0.09744406]
[1732380554717,0.00128191,97531.0,97514.0,0.09154267]
[1732380554893,0.202,97560.0,97510.0,0.09744406]
[1732380554894,0.00300057,97540.0,97520.0,0.09658466]
[1732380555109,0.00300057,97540.0,97530.0,0.09658466]
[1732380555110,0.10373307,97540.0,97530.0,0.09658466]
[1732380555312,0.10373307,97540.0,97510.0,0.0008594]
[1732380555313,0.00128168,97539.0,97520.0,0.09658466]
[1732380555536,0.00128168,97539.0,97530.0,0.09658466]
[1732380555718,0.00128168,97539.0,97520.0,0.09658466]
[1732380556661,0.10201427,97538.0,97521.0,0.18326721]
[1732380556907,0.2,97530.0,97515.0,0.18326721]
[1732380557149,0.30329617,97529.0,97510.0,0.0008594]
[1732380557624,0.2,97528.0,97510.0,0.0008594]
[1732380557878,0.10329626,97527.0,97510.0,0.0008594]
[1732380559351,0.10329626,97527.0,97510.0,0.09658466]
[1732380559598,0.00128195,97526.0,97510.0,0.09658466]
[1732380559830,0.10329622,97526.0,97510.0,0.09658466]
[1732380560781,0.00128195,97526.0,97510.0,0.09658466]
[1732380561057,0.0017188,97540.0,97514.0,0.22908401]
[1732380561058,0.00128176,97536.0,97514.0,0.22908401]
[1732380561291,0.10329591,97539.0,97520.0,0.09658466]
[1732380562675,0.10329591,97539.0,97515.0,0.023]
[1732380562889,0.10329591,97539.0,97511.0,0.173]
[1732380563329,0.10329591,97539.0,97511.0,0.20720444]
[1732380563554,0.10329591,97539.0,97513.0,0.023]
[1732380563555,0.0017192,97536.0,97513.0,0.023]
[1732380563771,0.0017192,97536.0,97514.0,0.03420444]
[1732380563993,0.0017192,97536.0,97515.0,0.023]
[1732380564231,0.0017192,97536.0,97531.0,0.13748254]
[1732380564449,0.0017192,97536.0,97515.0,0.023]
[1732380564450,0.0017192,97536.0,97532.0,0.17168698]
[1732380565120,0.0017192,97536.0,97531.0,0.13748254]
[1732380565331,0.0017192,97536.0,97527.0,0.13748254]
[1732380565332,0.10329591,97535.0,97527.0,0.13748254]
[1732380565552,0.10329591,97535.0,97524.0,0.13748254]
[1732380565773,0.1278,97534.0,97520.0,0.13748254]
[1732380566022,0.10329612,97533.0,97518.0,0.13748254]
[1732380566254,0.10329612,97533.0,97516.0,0.13748254]
[1732380566463,0.10201427,97532.0,97516.0,0.13748254]
[1732380566682,0.00128191,97531.0,97517.0,0.13748254]
[1732380566909,0.10201427,97530.0,97517.0,0.13748254]
[1732380567124,0.0012819,97529.0,97513.0,0.13748254]
[1732380567342,0.1032962,97528.0,97510.0,0.0008596]
[1732380568248,0.10201427,97518.0,97510.0,0.0008596]
[1732380568488,0.00128207,97517.0,97511.0,0.09168933]
[1732380568683,0.00128207,97517.0,97510.0,0.0008596]
[1732380568684,0.10201427,97516.0,97510.0,0.0008596]
[1732380568906,0.00128205,97515.0,97510.0,0.0008596]
[1732380569138,0.10329638,97514.0,97510.0,0.0008596]
[1732380571266,0.00128206,97513.0,97510.0,0.0008596]
[1732380571514,0.10201427,97512.0,97510.0,0.0008596]
[1732380571754,0.001282,97511.0,97510.0,0.0008596]
[1732380572002,0.10329627,97511.0,97510.0,0.0008596]
[1732380573100,0.10201427,97511.0,97510.0,0.0008596]
[1732380573637,0.00128204,97520.0,97510.0,0.0008596]
[1732380573807,0.10201427,97519.0,97510.0,0.09251338]
[1732380574026,0.00128195,97518.0,97510.0,0.09251338]
[1732380574285,0.10329622,97517.0,97510.0,0.09251338]
[1732380574514,0.0828,97513.0,97510.0,0.0008596]
[1732380574746,0.10329638,97512.0,97510.0,0.0008596]
[1732380575969,0.04111545,97512.0,97510.0,0.0008596]
[1732380577427,0.04111545,97512.0,97511.0,0.13748068]
[1732380577689,0.04111545,97512.0,97510.0,0.0008596]
[1732380578818,0.04111545,97512.0,97492.0,0.09164669]
[1732380578819,0.1323,97511.0,97492.0,0.09164669]
[1732380579042,0.1323,97511.0,97484.0,0.06084226]
[1732380579043,0.10329647,97510.0,97484.0,0.06084226]
[1732380579289,0.10329647,97510.0,97476.0,0.22911777]
[1732380579527,0.10329647,97510.0,97479.0,0.22911777]
[1732380579751,0.10329647,97510.0,97485.0,0.22911777]
[1732380580023,0.10329647,97510.0,97470.0,0.15]
[1732380580259,0.10329647,97510.0,97465.0,0.04126876]
[1732380580932,0.10329647,97510.0,97440.0,0.14567768]
[1732380580933,0.10201427,97495.0,97440.0,0.14567768]
[1732380581175,0.0012825,97494.0,97440.0,0.14567768]
[1732380581388,0.10201427,97493.0,97440.0,0.14567768]
[1732380581607,0.0012825,97492.0,97452.0,0.04213705]
[1732380581832,0.10201427,97491.0,97460.0,0.14481868]
[1732380582054,0.0012824,97490.0,97460.0,0.14481868]
[1732380582268,0.0495,97498.0,97460.0,0.14481868]
[1732380582269,0.10329667,97489.0,97461.0,0.15]
[1732380583669,0.10329667,97489.0,97450.0,0.14481868]
[1732380583670,0.10329667,97489.0,97451.0,0.15]
[1732380584400,0.10329667,97489.0,97451.0,0.19161239]
[1732380584653,0.10329667,97489.0,97451.0,0.04161239]
[1732380584895,0.10329667,97489.0,97451.0,0.19161239]
[1732380585861,0.10329667,97489.0,97460.0,0.0966603]
[1732380587274,0.10329667,97489.0,97470.0,0.0966603]
[1732380589061,0.0012824,97497.0,97479.0,0.0966603]
[1732380589315,0.10201427,97496.0,97479.0,0.0966603]
[1732380589579,0.10201427,97496.0,97467.0,0.18297302]
[1732380589580,0.00128227,97495.0,97480.0,0.0966603]
[1732380589841,0.00128218,97494.0,97480.0,0.0966603]
[1732380590071,0.0779,97509.0,97481.0,0.18297302]
[1732380590297,0.0779,97509.0,97480.0,0.0966603]
[1732380590298,0.10329645,97508.0,97485.0,0.17556758]
[1732380590536,0.10329645,97508.0,97483.0,0.17556758]
[1732380590808,0.10329645,97508.0,97472.0,0.15]
[1732380590809,0.10329645,97508.0,97476.0,0.22871628]
[1732380591049,0.10329645,97508.0,97467.0,0.37871628]
[1732380591050,0.10201427,97504.0,97467.0,0.37871628]
[1732380591277,0.046,97507.0,97463.0,0.23043408]
[1732380591278,0.15,97496.0,97463.0,0.23043408]
[1732380591505,0.1032967,97495.0,97463.0,0.23043408]
[1732380591712,0.1032967,97495.0,97465.0,0.22871628]
[1732380592140,0.1032967,97495.0,97463.0,0.0017178]
[1732380592141,0.1032967,97495.0,97463.0,0.23043408]
[1732380592362,0.1032967,97495.0,97463.0,0.0017178]
[1732380592590,0.2,97505.0,97463.0,0.0017178]
[1732380592591,0.0779,97508.0,97485.0,0.0966603]
[1732380592816,0.10329633,97507.0,97471.0,0.023]
[1732380593044,0.10329633,97507.0,97472.0,0.10201427]
[1732380593264,0.10329633,97507.0,97484.0,0.37871628]
[1732380593492,0.10329633,97507.0,97484.0,0.15]
[1732380593705,0.10329633,97507.0,97486.0,0.15]
[1732380595053,0.10329633,97507.0,97472.0,0.10201427]
[1732380595054,0.10329633,97507.0,97485.0,0.15]
[1732380595287,0.10329633,97507.0,97484.0,0.15]
[1732380595744,0.10329633,97507.0,97484.0,0.37861364]
[1732380595989,0.046,97509.0,97490.0,0.14489509]
[1732380596204,0.00128196,97517.0,97490.0,0.14489509]
[1732380596419,0.00128196,97517.0,97488.0,0.22861364]
[1732380596420,0.10201427,97516.0,97488.0,0.22861364]
[1732380596694,0.00128196,97515.0,97488.0,0.22861364]
[1732380596923,0.00128196,97515.0,97500.0,0.14489509]
[1732380597147,0.0779,97533.0,97507.0,0.22861364]
[1732380597148,0.0012818,97532.0,97507.0,0.22861364]
[1732380597364,0.0012818,97532.0,97501.0,0.15]
[1732380597365,0.0012818,97532.0,97508.0,0.22861364]
[1732380597574,0.0012818,97532.0,97509.0,0.22861364]
[1732380597798,0.0012818,97532.0,97501.0,0.15]
[1732380597799,0.0012818,97532.0,97511.0,0.2285735]
[1732380598022,0.0012818,97532.0,97515.0,0.2285735]
[1732380598023,0.00128178,97532.0,97515.0,0.2285735]
[1732380598250,0.00128178,97532.0,97514.0,0.2285735]
[1732380598469,0.00299775,97541.0,97516.0,0.25710712]
[1732380598699,0.001719,97541.0,97516.0,0.02853362]
[1732380598920,0.001719,97541.0,97502.0,0.002]
[1732380598921,0.001719,97541.0,97526.0,0.14489509]
[1732380599140,0.001719,97541.0,97533.0,0.18287391]
[1732380599377,0.001719,97541.0,97527.0,0.10201427]
[1732380599378,0.001719,97541.0,97534.0,0.18287391]
[1732380599625,0.001719,97541.0,97534.0,0.03184799]
[1732380599842,0.001719,97541.0,97534.0,0.21465851]
[1732380600060,0.001719,97541.0,97535.0,0.18281052]
[1732380600291,0.001719,97541.0,97534.0,0.03184799]
[1732380600510,0.001719,97541.0,97535.0,0.18279513]
[1732380600959,0.001719,97541.0,97533.0,0.18279513]
[1732380601414,0.001719,97541.0,97531.0,0.15]
[1732380602151,0.001719,97541.0,97531.0,0.18737831]
[1732380602370,0.001719,97541.0,97532.0,0.03737831]
[1732380603257,0.001719,97541.0,97534.0,0.18275267]
[1732380603478,0.001719,97541.0,97533.0,0.15]
[1732380603479,0.001719,97541.0,97533.0,0.18275267]
[1732380603709,0.001719,97541.0,97527.0,0.13316938]
[1732380603941,0.001719,97541.0,97533.0,0.01809403]
[1732380604222,0.00047588,97540.0,97539.0,0.002]
[1732380604478,0.001719,97541.0,97539.0,0.002]
[1732380604479,0.001719,97541.0,97539.0,0.12701427]
[1732380604697,0.001718,97584.0,97560.0,0.14489509]
[1732380604921,0.001718,97584.0,97561.0,0.002]
[1732380605167,0.001718,97584.0,97570.0,0.14489509]
[1732380605886,0.001718,97584.0,97571.0,0.15]
[1732380606318,0.001718,97584.0,97562.0,0.15]
[1732380606534,0.001718,97584.0,97563.0,0.12501427]
[1732380606754,0.001718,97584.0,97564.0,0.15]
[1732380606991,0.001718,97584.0,97563.0,0.12501427]
[1732380606992,0.001718,97584.0,97566.0,0.15]
[1732380607458,0.049,97581.0,97561.0,0.04071623]
[1732380607691,0.00128109,97580.0,97561.0,0.04071623]
[1732380607919,0.00128109,97580.0,97550.0,0.14489509]
[1732380608145,0.00128109,97580.0,97551.0,0.10201427]
[1732380608843,0.00128109,97580.0,97552.0,0.15]
[1732380609075,0.00128109,97580.0,97552.0,0.18122824]
[1732380609297,0.10201427,97579.0,97552.0,0.03122824]
[1732380609535,0.00128119,97578.0,97552.0,0.03122824]
[1732380609761,0.10201427,97577.0,97552.0,0.03122824]
[1732380609995,0.00128118,97576.0,97552.0,0.03122824]
[1732380610210,0.10329545,97575.0,97552.0,0.03122824]
[1732380611611,0.10201427,97575.0,97531.0,0.02656895]
[1732380611863,0.00128118,97574.0,97532.0,0.10201427]
[1732380612105,0.10201427,97573.0,97532.0,0.10201427]
[1732380612339,0.00128133,97572.0,97523.0,0.04084703]
[1732380612572,0.10201427,97571.0,97524.0,0.10160611]
[1732380612784,0.10201427,97571.0,97523.0,0.0467358]
[1732380612785,0.00128136,97570.0,97523.0,0.0467358]
[1732380613005,0.15,97568.0,97526.0,0.023]
[1732380613221,0.10329563,97567.0,97526.0,0.01248772]
[1732380613450,0.15,97566.0,97527.0,0.023]
[1732380613681,0.15229563,97565.0,97527.0,0.0280209]
[1732380613919,0.15229563,97565.0,97526.0,0.01248772]
[1732380613920,0.10201427,97562.0,97528.0,0.00251045]
[1732380614188,0.0813,97560.0,97528.0,0.0050209]
[1732380614452,0.10329575,97559.0,97528.0,0.0050209]
[1732380614952,0.08717983,97559.0,97528.0,0.0050209]
[1732380616647,0.08717983,97559.0,97519.0,0.0017192]
[1732380616885,0.08589835,97559.0,97520.0,0.00251045]
[1732380617119,0.1303,97550.0,97519.0,0.0017192]
[1732380617350,0.1303,97550.0,97490.0,0.14489509]
[1732380617351,0.002,97535.0,97492.0,0.2]
[1732380617610,0.18331427,97534.0,97493.0,0.10201427]
[1732380617883,0.00128168,97533.0,97493.0,0.10201427]
[1732380618170,0.10201427,97532.0,97493.0,0.10201427]
[1732380618396,0.049,97531.0,97483.0,0.2]
[1732380618655,0.10201427,97530.0,97484.0,0.10201427]
[1732380618933,0.002,97523.0,97490.0,0.14489509]
[1732380619198,0.10201427,97522.0,97491.0,0.10201427]
[1732380619456,0.049,97531.0,97491.0,0.10201427]
[1732380619457,0.049,97531.0,97510.0,0.14489509]
[1732380619683,0.049,97531.0,97511.0,0.15]
[1732380620195,0.049,97531.0,97495.0,0.173]
[1732380620196,0.10201427,97530.0,97495.0,0.173]
[1732380620425,0.00168743,97523.0,97497.0,0.173]
[1732380620659,0.10201427,97530.0,97497.0,0.173]
[1732380620660,0.00168743,97526.0,97497.0,0.173]
[1732380620927,0.00128165,97529.0,97497.0,0.173]
[1732380620928,0.10201427,97525.0,97497.0,0.173]
[1732380621425,0.00168743,97517.0,97497.0,0.173]
[1732380621661,0.00168743,97517.0,97495.0,0.10201427]
[1732380621662,0.00168743,97517.0,97496.0,0.173]
[1732380621896,0.10201427,97516.0,97496.0,0.15]
[1732380622131,0.10201427,97516.0,97490.0,0.04162162]
[1732380622584,0.10201427,97516.0,97481.0,0.15]
[1732380622585,0.08258188,97515.0,97481.0,0.15]
[1732380622806,0.10201427,97514.0,97483.0,0.15]
[1732380623280,0.10201427,97514.0,97484.0,0.023]
[1732380624195,0.0482,97513.0,97484.0,0.023]
[1732380624379,0.10201427,97512.0,97484.0,0.023]
[1732380625296,0.10201427,97512.0,97478.0,0.023]
[1732380625514,0.00168743,97508.0,97478.0,0.023]
[1732380625750,0.00168743,97508.0,97477.0,0.0017198]
[1732380625751,0.076,97506.0,97477.0,0.0017198]
[1732380625975,0.00168743,97503.0,97477.0,0.0017198]
[1732380626190,0.10329641,97502.0,97477.0,0.0017198]
[1732380627116,0.10201427,97502.0,97477.0,0.0017198]
[1732380627357,0.10201427,97502.0,97471.0,0.15]
[1732380627358,0.10201427,97502.0,97480.0,0.14489509]
[1732380628801,0.10201427,97502.0,97471.0,0.023]
[1732380628802,0.09201427,97502.0,97471.0,0.023]
[1732380629031,0.00128203,97501.0,97471.0,0.023]
[1732380629267,0.10201427,97500.0,97471.0,0.173]
[1732380629493,0.10201427,97500.0,97471.0,0.023]
[1732380629728,0.04688213,97499.0,97471.0,0.023]
[1732380629963,0.04688213,97499.0,97471.0,0.12501427]
[1732380629964,0.0456,97499.0,97471.0,0.12501427]
[1732380630206,0.0456,97499.0,97480.0,0.14489509]
[1732380631534,0.0456,97499.0,97481.0,0.023]
[1732380634209,0.0456,97499.0,97481.0,0.06369664]
[1732380634469,0.0456,97499.0,97481.0,0.023]
[1732380635683,0.0456,97499.0,97481.0,0.173]
[1732380636146,0.0456,97499.0,97481.0,0.15]
[1732380636367,0.00168743,97498.0,97481.0,0.15]
[1732380636598,0.0456,97499.0,97471.0,0.10201427]
[1732380636823,0.0456,97499.0,97472.0,0.023]
[1732380637089,0.0456,97499.0,97480.0,0.14489509]
[1732380638424,0.0456,97499.0,97481.0,0.15]
[1732380638640,0.0456,97499.0,97471.0,0.14519856]
[1732380638641,0.18389632,97498.0,97471.0,0.04318429]
[1732380638867,0.18389632,97498.0,97480.0,0.09662592]
[1732380639102,0.18261427,97498.0,97488.0,0.09662592]
[1732380639776,0.0806,97498.0,97488.0,0.09662592]
[1732380640450,0.0806,97498.0,97488.0,0.09622561]
[1732380640657,0.0806,97498.0,97488.0,0.04069744]
[1732380640888,0.0806,97498.0,97481.0,0.023]
[1732380641560,0.10201427,97497.0,97471.0,0.0017194]
[1732380641774,0.10329629,97497.0,97471.0,0.0017194]
[1732380641996,0.10201427,97497.0,97480.0,0.09662592]
[1732380642939,0.0806,97498.0,97480.0,0.09662592]
[1732380642940,0.0806,97498.0,97481.0,0.023]
[1732380643160,0.0806,97498.0,97488.0,0.09662592]
[1732380644374,0.03459394,97498.0,97488.0,0.09662592]
[1732380645067,0.03019394,97499.0,97488.0,0.09662592]
[1732380645930,0.03019394,97499.0,97489.0,0.023]
[1732380646168,0.2,97552.0,97489.0,0.12501427]
[1732380646169,0.13472994,97521.0,97489.0,0.12501427]
[1732380646441,0.00168743,97536.0,97491.0,0.173]
[1732380646654,0.13472994,97526.0,97493.0,0.373]
[1732380646882,0.13472994,97526.0,97495.0,0.173]
[1732380647116,0.13472994,97526.0,97499.0,0.2]
[1732380647348,0.13472994,97536.0,97500.0,0.27501427]
[1732380647569,0.00128165,97552.0,97500.0,0.27501427]
[1732380647570,0.13472994,97526.0,97500.0,0.27501427]
[1732380647784,0.13472994,97541.0,97520.0,0.09662592]
[1732380648013,0.1246,97539.0,97520.0,0.09662592]
[1732380648235,0.36134421,97539.0,97520.0,0.09662592]
[1732380648450,0.36134421,97539.0,97504.0,0.15]
[1732380648451,0.13472994,97533.0,97510.0,0.09662592]
[1732380648722,0.13472994,97533.0,97520.0,0.09662592]
[1732380649910,0.13472994,97534.0,97520.0,0.09662592]
[1732380650143,0.13472994,97534.0,97511.0,0.173]
[1732380650597,0.0008597,97533.0,97511.0,0.173]
[1732380652914,0.0008597,97533.0,97521.0,0.023]
[1732380653146,0.0008597,97533.0,97524.0,0.023]
[1732380653355,0.0008597,97533.0,97524.0,0.15]
[1732380653581,0.0008597,97533.0,97520.0,0.27904636]
[1732380653805,0.0008597,97533.0,97522.0,0.15]
[1732380654463,0.0008597,97533.0,97512.0,0.10201427]
[1732380654464,0.0008597,97533.0,97513.0,0.023]
[1732380654710,0.0008597,97533.0,97513.0,0.12501427]
[1732380656167,0.0008597,97533.0,97520.0,0.09662592]
[1732380656657,0.0008597,97533.0,97523.0,0.023]
[1732380656914,0.0008597,97533.0,97525.0,0.023]
[1732380657131,0.0756,97576.0,97570.0,0.41135046]
[1732380657359,0.0756,97576.0,97560.0,0.09662592]
[1732380657842,0.0756,97576.0,97550.0,0.09662592]
[1732380660653,0.0756,97576.0,97560.0,0.09662592]
[1732380661172,0.049,97580.0,97560.0,0.19325184]
[1732380661381,0.001718,97584.0,97560.0,0.19325184]
[1732380661682,0.001718,97584.0,97561.0,0.10201427]
[1732380661915,0.001718,97584.0,97568.0,0.2]
[1732380662184,0.001718,97584.0,97569.0,0.10201427]
[1732380663622,0.001718,97584.0,97565.0,0.01165304]
[1732380663872,0.001718,97584.0,97566.0,0.023]
[1732380664375,0.001718,97584.0,97567.0,0.10201427]
[1732380664594,0.001718,97584.0,97571.0,0.023]
[1732380665550,0.001718,97584.0,97571.0,0.03465304]
[1732380666058,0.001718,97584.0,97573.0,0.023]
[1732380666292,0.001718,97584.0,97574.0,0.11397988]
[1732380666571,0.001718,97584.0,97574.0,0.31408494]
[1732380667026,0.001718,97584.0,97574.0,0.31377237]
[1732380668040,0.001718,97584.0,97574.0,0.32326309]
[1732380668295,0.001718,97584.0,97575.0,0.17114376]
[1732380668746,0.001718,97584.0,97580.0,0.01165304]
[1732380668998,0.001718,97584.0,97581.0,0.15]
[1732380669779,0.049,97605.0,97599.0,0.544364]
[1732380669990,0.049,97605.0,97590.0,0.09662592]
[1732380670234,0.04074458,97606.0,97584.0,0.01165304]
[1732380670463,0.04074458,97606.0,97590.0,0.09662592]
[1732380670723,0.1242192,97617.0,97590.0,0.10827896]
[1732380672414,0.04091051,97611.0,97590.0,0.10827896]
[1732380672938,0.1242192,97617.0,97590.0,0.10827896]
[1732380673674,0.1242192,97617.0,97591.0,0.15]
[1732380675063,0.1242192,97617.0,97590.0,0.01165304]
[1732380676956,0.1242192,97617.0,97591.0,0.023]
[1732380677472,0.04158586,97616.0,97591.0,0.023]
[1732380678650,0.04158586,97616.0,97590.0,0.023]
[1732380679124,0.04158586,97616.0,97584.0,0.04112622]
[1732380679340,0.0758,97599.0,97584.0,0.04112622]
[1732380679556,0.0467,97598.0,97577.0,0.15]
[1732380680488,0.0467,97598.0,97580.0,0.24662592]
[1732380680725,0.0467,97598.0,97581.0,0.023]
[1732380680956,0.0467,97598.0,97581.0,0.173]
[1732380681431,0.0467,97598.0,97581.0,0.27501427]
[1732380681678,0.0467,97598.0,97584.0,0.023]
[1732380681908,0.0467,97598.0,97585.0,0.15]
[1732380682127,0.0467,97598.0,97586.0,0.023]
[1732380682357,0.0467,97598.0,97585.0,0.15]
[1732380683024,0.0467,97598.0,97580.0,0.023]
[1732380683248,0.0467,97598.0,97577.0,0.01165304]
[1732380683249,0.00074441,97598.0,97577.0,0.01165304]
[1732380683463,0.00074441,97598.0,97578.0,0.12501427]
[1732380683689,0.00074441,97598.0,97580.0,0.023]
[1732380685092,0.0758,97599.0,97589.0,0.023]
[1732380685313,0.0758,97599.0,97589.0,0.12501427]
[1732380685539,0.0758,97599.0,97580.0,0.09662592]
[1732380685540,0.0758,97599.0,97580.0,0.07319927]
[1732380685765,0.0758,97599.0,97589.0,0.09662592]
[1732380685995,0.0008583,97598.0,97589.0,0.09662592]
[1732380686473,0.0008583,97598.0,97581.0,0.01048122]
[1732380687182,0.0008583,97598.0,97588.0,0.09662592]
[1732380687394,0.0008583,97598.0,97581.0,0.02677376]
[1732380687860,0.0008583,97598.0,97581.0,0.17677376]
[1732380689710,0.0008583,97598.0,97588.0,0.09662592]
[1732380690155,0.0008583,97598.0,97582.0,0.16629254]
[1732380690363,0.0008583,97598.0,97583.0,0.01046014]
[1732380691479,0.0008583,97598.0,97588.0,0.09662592]
[1732380692823,0.0008583,97598.0,97590.0,0.00031257]
[1732380693468,0.0008583,97598.0,97593.0,0.00031257]
[1732380693692,0.0467,97615.0,97613.0,0.470282]
[1732380693912,0.0467,97615.0,97600.0,0.09662592]
[1732380693913,0.10201427,97614.0,97600.0,0.09662592]
[1732380694896,0.10201427,97614.0,97582.0,0.01100863]
[1732380696820,0.0829,97613.0,97582.0,0.01100863]
[1732380697086,0.10201427,97612.0,97582.0,0.01100863]
[1732380697294,0.10201427,97612.0,97585.0,0.0017162]
[1732380698277,0.0017192,97617.0,97585.0,0.0017162]
[1732380698278,0.1322,97596.0,97585.0,0.0017162]
[1732380698519,0.09662592,97600.0,97585.0,0.0017162]
[1732380698520,0.0829,97591.0,97585.0,0.0017162]
[1732380698736,0.002,97589.0,97585.0,0.0017162]
[1732380698985,0.10201427,97588.0,97585.0,0.0017162]
[1732380699203,0.0829,97591.0,97585.0,0.0017162]
[1732380699204,0.18491427,97591.0,97585.0,0.0017162]
[1732380700205,0.18491427,97591.0,97585.0,0.04336255]
[1732380700685,0.18491427,97591.0,97585.0,0.0017162]
[1732380701661,0.0829,97616.0,97585.0,0.0017162]
[1732380701878,0.0829,97616.0,97590.0,0.09662592]
[1732380701879,0.10201427,97615.0,97590.0,0.09662592]
[1732380702100,0.10201427,97615.0,97591.0,0.02935471]
[1732380702324,0.10201427,97615.0,97592.0,0.15]
[1732380702813,0.10201427,97615.0,97593.0,0.13708445]
[1732380703037,0.10201427,97615.0,97594.0,0.28708445]
[1732380703361,0.10201427,97615.0,97594.0,0.15]
[1732380703572,0.10201427,97615.0,97596.0,0.15]
[1732380703840,0.10201427,97615.0,97597.0,0.13708445]
[1732380704069,0.10201427,97615.0,97576.0,0.27417206]
[1732380704070,0.10201427,97615.0,97598.0,0.15]
[1732380704494,0.10201427,97615.0,97606.0,0.13708445]
[1732380704703,0.10201427,97615.0,97606.0,0.15]
[1732380705132,0.10201427,97615.0,97606.0,0.28708445]
[1732380705580,0.10201427,97615.0,97609.0,0.13708445]
[1732380705581,0.023,97615.0,97609.0,0.13708445]
[1732380705869,0.023,97615.0,97612.0,0.13708445]
[1732380706046,0.023,97615.0,97614.0,0.13708445]
[1732380706271,0.023,97615.0,97613.0,0.13708445]
[1732380706485,0.023,97615.0,97606.0,0.15]
[1732380706486,0.023,97615.0,97612.0,0.18278137]
[1732380706721,0.023,97615.0,97613.0,0.18278137]
[1732380706944,0.12501427,97615.0,97613.0,0.18278137]
[1732380707195,0.12501427,97615.0,97606.0,0.15]
[1732380707196,0.023,97615.0,97614.0,0.13737876]
[1732380707428,0.023,97615.0,97614.0,0.18278137]
[1732380707649,0.023,97615.0,97612.0,0.37847672]
[1732380708077,0.023,97615.0,97613.0,0.1832342]
[1732380708287,0.023,97615.0,97614.0,0.22847672]
[1732380708504,0.023,97615.0,97613.0,0.22847672]
[1732380708718,0.0829,97616.0,97613.0,0.22847672]
[1732380708946,0.0829,97616.0,97614.0,0.18328841]
[1732380709152,0.0829,97616.0,97613.0,0.22847672]
[1732380709370,0.0829,97616.0,97613.0,0.18331112]
[1732380709578,0.0829,97616.0,97615.0,0.18331112]
[1732380709795,0.18491427,97616.0,97615.0,0.18331112]
[1732380710248,0.18491427,97616.0,97615.0,0.18332577]
[1732380710475,0.18491427,97616.0,97615.0,0.22915721]
[1732380710703,0.0829,97616.0,97614.0,0.22915721]
[1732380711211,0.0829,97616.0,97608.0,0.42498866]
[1732380711434,0.0829,97616.0,97609.0,0.15]
[1732380711645,0.0829,97616.0,97609.0,0.42498866]
[1732380711858,0.0829,97616.0,97609.0,0.15]
[1732380712066,0.0829,97616.0,97609.0,0.42498866]
[1732380712494,0.0829,97616.0,97612.0,0.27503573]
[1732380712915,0.0829,97616.0,97604.0,0.40610744]
[1732380713134,0.0829,97616.0,97605.0,0.15]
[1732380713815,0.0829,97616.0,97614.0,0.2291959]
[1732380714235,0.0829,97616.0,97615.0,0.2291959]
[1732380714453,0.0829,97616.0,97605.0,0.15]
[1732380714454,0.0829,97616.0,97614.0,0.2291959]
[1732380714664,0.0829,97616.0,97615.0,0.2291959]
[1732380714883,0.0829,97616.0,97615.0,0.22919937]
[1732380715360,0.0829,97616.0,97614.0,0.22919937]
[1732380715570,0.0829,97616.0,97600.0,0.15]
[1732380715571,0.0829,97616.0,97615.0,0.22919937]
[1732380715813,0.0829,97616.0,97600.0,0.15]
[1732380715814,0.0829,97616.0,97600.0,0.04154074]
[1732380716025,0.0829,97616.0,97615.0,0.22920333]
[1732380716245,0.0829,97616.0,97612.0,0.22920333]
[1732380716453,0.0829,97616.0,97615.0,0.18336839]
[1732380716671,0.0829,97616.0,97614.0,0.22920333]
[1732380717119,0.0829,97616.0,97612.0,0.22920333]
[1732380717761,0.0510192,97617.0,97600.0,0.15]
[1732380717762,0.0017192,97617.0,97607.0,0.0756]
[1732380717978,0.0017192,97617.0,97608.0,0.15]
[1732380718195,0.0017192,97617.0,97610.0,0.15]
[1732380718410,0.0017192,97617.0,97608.0,0.15]
[1732380719304,0.0017192,97617.0,97605.0,0.42499787]
[1732380719977,0.0017192,97617.0,97606.0,0.27499787]
[1732380720413,0.0017192,97617.0,97605.0,0.42499787]
[1732380720839,0.0017192,97617.0,97594.0,0.0756]
[1732380720840,0.0017192,97617.0,97607.0,0.15]
[1732380721066,0.0017192,97617.0,97611.0,0.15]